bitfinex/quotes_SOLUSD_20220128
["timestamp","ask_amount","ask_price","bid_price","bid_amount"]
[1643375958520,0.25,88.162,88.075,6.0]
[1643375958720,0.25,88.162,88.08,6.0]
[1643375958920,0.25,88.162,88.081,6.25]
[1643375959120,0.25,88.162,88.091,6.0]
[1643375959322,17.033,88.16,88.092,0.25]
[1643375959523,17.033,88.16,88.076,0.25]
[1643375959721,114.45,88.159,88.076,0.25]
[1643375959921,6.0,88.15,88.071,0.25]
[1643375960224,114.2,88.147,88.071,0.25]
[1643375960623,0.25,88.146,88.071,0.25]
[1643375960825,0.25,88.146,88.072,1.90898631]
[1643375961225,0.25,88.146,88.073,17.68429675]
[1643375961424,0.25,88.146,88.082,6.0]
[1643375961626,0.25,88.146,88.09,13.58]
[1643375961825,1.55820228,88.175,88.091,0.25]
[1643375962025,1.55820228,88.183,88.1,6.0]
[1643375962225,48.35675568,88.182,88.1,6.0]
[1643375962425,48.35675568,88.182,88.101,2.15898631]
[1643375962625,48.35675568,88.182,88.101,8.15898631]
[1643375963025,48.35675568,88.182,88.102,1.90898631]
[1643375963225,48.35675568,88.182,88.102,19.34328306]
[1643375963425,48.35675568,88.182,88.103,0.25]
[1643375963625,48.35675568,88.182,88.103,19.59328306]
[1643375964033,48.35675568,88.182,88.104,1.90898631]
[1643375964231,0.25,88.181,88.104,1.90898631]
[1643375964431,0.25,88.181,88.105,0.25]
[1643375964837,0.25,88.181,88.106,1.90898631]
[1643375965037,0.25,88.181,88.103,17.43429675]
[1643375965234,0.25,88.181,88.104,0.25]
[1643375965633,0.25,88.181,88.09,30.605]
[1643375965835,0.25,88.181,88.091,0.25]
[1643375966134,17.029,88.17,88.091,0.25]
[1643375966334,0.25,88.169,88.091,0.25]
[1643375966734,43.76830935,88.168,88.091,0.25]
[1643375966935,0.25,88.167,88.08,6.0]
[1643375967133,0.25,88.167,88.05,30.613]
[1643375967333,48.9851,88.167,88.053,17.43429675]
[1643375967533,114.2,88.166,88.063,6.0]
[1643375967936,0.25,88.165,88.063,6.0]
[1643375968234,114.2,88.138,88.063,6.0]
[1643375968434,114.2,88.138,88.046,11.33582919]
[1643375968635,36.01127405,88.107,88.042,16.84246346]
[1643375968836,0.25,88.106,88.043,0.25]
[1643375969238,0.25,88.106,88.041,6.0]
[1643375969437,9.87,88.106,88.021,1.90898631]
[1643375970636,17.043,88.1,88.021,1.90898631]
[1643375970836,17.043,88.1,88.01,17.041]
[1643375970837,0.25,88.099,88.031,6.0]
[1643375971037,0.25,88.099,88.022,6.0]
[1643375971442,0.25,88.099,88.023,0.25]
[1643375975745,114.45,88.099,88.023,0.25]
[1643375975940,0.25,88.099,88.023,0.25]
[1643375976341,0.25,88.099,88.022,6.0]
[1643375977843,0.25,88.099,88.023,0.25]
[1643375978641,0.25,88.105,88.023,0.25]
[1643375979042,0.25,88.105,88.03,6.0]
[1643375979243,47.3334,88.106,88.031,0.25]
[1643375979645,47.3334,88.106,88.033,6.0]
[1643375980043,150.21127405,88.107,88.02,17.04]
[1643375980244,150.21127405,88.107,88.03,6.0]
[1643375980647,150.21127405,88.107,88.022,6.0]
[1643375980848,0.25,88.106,88.022,6.0]
[1643375981250,0.25,88.106,88.023,0.25]
[1643375981846,17.043,88.1,88.023,0.25]
[1643375982254,0.25,88.099,88.023,0.25]
[1643375982747,0.25,88.099,88.024,1.90898631]
[1643375983246,0.25,88.099,88.025,0.25]
[1643375984248,0.25,88.099,88.023,0.25]
[1643375990258,37.64973104,88.069,88.023,0.25]
[1643375990962,37.64973104,88.069,88.02,6.0]
[1643375991160,37.64973104,88.069,88.021,0.25]
[1643375994062,37.64973104,88.069,88.016,6.0]
[1643375994260,37.64973104,88.069,88.017,0.25]
[1643375994763,37.64973104,88.069,88.017,6.25]
[1643375994960,37.64973104,88.069,88.017,0.25]
[1643375995261,37.64973104,88.069,88.027,6.0]
[1643375995660,37.64973104,88.069,88.028,0.25]
[1643375995860,37.64973104,88.069,88.031,6.0]
[1643375996265,37.64973104,88.069,88.032,0.25]
[1643375998384,100.0,88.07,88.032,0.25]
[1643375998584,0.25,88.069,88.032,0.25]
[1643375999386,43.70490837,88.069,88.032,0.25]
[1643375999588,43.70490837,88.069,88.034,6.0]
[1643375999891,43.70490837,88.069,88.035,0.25]
[1643376000388,43.70490837,88.069,88.034,6.0]
[1643376000589,43.70490837,88.069,88.035,0.25]
[1643376001494,0.25,88.069,88.035,0.25]
[1643376001688,100.0,88.07,88.034,0.25]
[1643376002088,100.0,88.07,88.035,6.0]
[1643376002289,100.0,88.07,88.036,0.25]
[1643376002489,100.0,88.07,88.036,6.25]
[1643376003089,100.0,88.07,88.036,0.25]
[1643376003489,100.0,88.07,88.033,0.25]
[1643376003892,100.0,88.07,88.033,6.25]
[1643376004990,100.0,88.07,88.033,0.25]
[1643376005393,100.0,88.07,88.031,0.25]
[1643376005594,100.0,88.07,88.034,6.0]
[1643376005793,100.0,88.07,88.035,0.25]
[1643376005994,100.0,88.07,88.033,6.0]
[1643376006495,100.0,88.07,88.034,0.25]
[1643376006896,100.0,88.07,88.034,6.25]
[1643376007596,100.0,88.07,88.034,0.25]
[1643376007795,100.0,88.07,88.031,0.25]
[1643376007996,100.0,88.07,88.033,6.0]
[1643376008195,100.0,88.07,88.034,6.0]
[1643376008395,100.0,88.07,88.035,0.25]
[1643376011398,100.0,88.07,88.035,6.0]
[1643376011802,100.0,88.07,88.036,0.25]
[1643376014104,100.0,88.07,88.036,6.0]
[1643376014307,100.0,88.07,88.037,0.25]
[1643376014906,100.0,88.07,88.037,6.25]
[1643376015305,100.0,88.07,88.038,1.89548709]
[1643376015830,100.0,88.07,88.048,6.0]
[1643376016209,100.0,88.07,88.049,0.25]
[1643376017113,100.0,88.07,88.05,6.0]
[1643376017313,100.0,88.07,88.049,0.25]
[1643376017314,100.0,88.07,88.051,0.25]
[1643376017611,100.0,88.07,88.049,0.25]
[1643376018511,100.0,88.07,88.039,0.25]
[1643376018912,100.0,88.07,88.038,0.25]
[1643376019516,100.0,88.07,88.035,6.0]
[1643376019713,100.0,88.07,88.036,0.25]
[1643376020715,100.0,88.07,88.036,6.25]
[1643376020912,38.89818459,88.069,88.037,0.25]
[1643376022118,38.89818459,88.069,88.036,6.25]
[1643376024036,38.89818459,88.069,88.046,6.0]
[1643376024940,38.89818459,88.069,88.036,6.0]
[1643376025139,38.89818459,88.069,88.037,6.0]
[1643376025336,38.89818459,88.069,88.038,0.25]
[1643376027739,100.0,88.07,88.038,0.25]
[1643376028140,100.0,88.07,88.04,6.0]
[1643376028342,100.0,88.07,88.041,0.25]
[1643376031855,100.0,88.07,88.038,6.0]
[1643376032455,100.0,88.07,88.039,0.25]
[1643376032655,100.0,88.07,88.045,6.0]
[1643376032857,77.89543029,88.07,88.046,0.25]
[1643376033055,77.89543029,88.07,88.05,13.58]
[1643376033356,1.55820228,88.123,88.052,114.2]
[1643376033559,1.55820228,88.143,88.062,6.0]
[1643376033755,1.55820228,88.141,88.07,13.58]
[1643376033957,1.55820228,88.141,88.071,6.0]
[1643376034155,40.96571213,88.14,88.08,6.0]
[1643376034355,40.96571213,88.14,88.081,0.25]
[1643376034556,40.96571213,88.14,88.081,6.25]
[1643376034959,0.25,88.139,88.082,6.0]
[1643376035158,1.80820228,88.139,88.081,6.0]
[1643376035358,1.55820228,88.135,88.082,0.25]
[1643376035555,42.52391441,88.14,88.082,0.25]
[1643376035756,40.96571213,88.14,88.082,0.25]
[1643376036457,40.96571213,88.14,88.071,0.25]
[1643376037257,0.25,88.139,88.071,0.25]
[1643376037461,40.96571213,88.14,88.071,0.25]
[1643376038260,0.25,88.139,88.06,30.612]
[1643376038462,0.25,88.139,87.967,6.18146698]
[1643376038463,2.95669142,88.137,88.046,1.5667374]
[1643376038659,2.95669142,88.137,87.967,6.18146698]
[1643376038660,44.97865481,88.118,88.031,1.5667374]
[1643376038860,44.97865481,88.118,88.01,13.58]
[1643376038861,0.25,88.117,88.024,1.5667374]
[1643376039060,0.25,88.117,88.023,1.5667374]
[1643376039260,1.80820228,88.117,88.021,1.5667374]
[1643376039462,48.62400228,88.116,88.021,1.5667374]
[1643376039664,48.62400228,88.116,88.031,6.0]
[1643376039864,1.55820228,88.112,88.031,6.0]
[1643376040064,1.55820228,88.113,88.03,6.0]
[1643376040263,0.25,88.111,88.03,6.0]
[1643376040466,1.80820228,88.111,88.03,6.0]
[1643376040663,0.25,88.111,88.03,6.0]
[1643376040867,0.25,88.111,88.031,0.25]
[1643376041468,2.95669142,88.107,88.03,6.0]
[1643376041667,1.55820228,88.1,88.03,6.0]
[1643376041868,1.55820228,88.095,88.02,6.0]
[1643376042067,24.56450228,88.094,88.01,6.0]
[1643376042267,23.0063,88.094,88.021,17.89218564]
[1643376042570,0.25,88.093,88.031,6.0]
[1643376042768,0.25,88.093,88.032,0.25]
[1643376042966,0.25,88.093,88.032,6.25]
[1643376043167,0.25,88.093,88.031,6.0]
[1643376043366,2.95669142,88.092,88.005,1.5667374]
[1643376043567,2.95669142,88.092,88.015,6.0]
[1643376043766,0.25,88.091,88.016,0.25]
[1643376043966,0.25,88.091,88.013,6.0]
[1643376044167,0.25,88.091,88.014,0.25]
[1643376044969,0.25,88.093,88.014,0.25]
[1643376045370,17.046,88.09,88.014,0.25]
[1643376045771,0.25,88.089,88.014,0.25]
[1643376045970,0.25,88.089,88.01,6.0]
[1643376046170,0.25,88.089,88.012,0.25]
[1643376047173,0.25,88.089,88.012,2.14548709]
[1643376047372,0.25,88.093,88.012,1.89548709]
[1643376047573,0.25,88.093,87.975,3.13857665]
[1643376047574,114.2,88.083,88.002,1.89548709]
[1643376047786,114.2,88.081,87.991,17.89218564]
[1643376047974,6.0,88.073,87.991,17.89218564]
[1643376048173,6.0,88.071,87.991,17.89218564]
[1643376048375,0.25,88.07,87.991,17.89218564]
[1643376048776,114.45,88.07,87.992,0.25]
[1643376049375,114.45,88.07,87.994,6.0]
[1643376049777,114.45,88.07,87.995,0.25]
[1643376049977,131.5,88.07,87.985,7.89548709]
[1643376050180,1.55820228,88.069,87.992,6.0]
[1643376050381,40.05935849,88.059,87.992,6.0]
[1643376050578,46.05935849,88.059,87.962,3.46222449]
[1643376050778,24.9555,88.058,87.962,3.46222449]
[1643376050979,114.2,88.057,87.983,6.0]
[1643376051281,6.0,88.047,87.962,1.5667374]
[1643376051479,6.0,88.047,87.941,41.64018568]
[1643376051480,114.2,88.046,87.954,17.89218564]
[1643376051681,114.2,88.035,87.941,1.5667374]
[1643376051880,0.25,88.034,87.938,1.5667374]
[1643376052081,38.65055348,88.024,87.948,6.0]
[1643376052283,0.25,88.023,87.948,6.0]
[1643376052482,6.0,88.014,87.948,6.0]
[1643376052885,0.25,88.013,87.938,1.5667374]
[1643376053182,6.0,88.012,87.948,6.0]
[1643376053483,0.25,88.013,87.936,6.0]
[1643376053484,37.63290718,88.01,87.945,6.0]
[1643376054087,1.55820228,88.068,87.947,6.0]
[1643376054287,24.2182,88.045,87.948,0.25]
[1643376054489,24.2182,88.045,87.956,6.0]
[1643376054889,24.2182,88.045,87.958,6.0]
[1643376055189,44.54531525,88.044,87.96,6.0]
[1643376055397,44.54531525,88.044,87.961,0.25]
[1643376055798,17.055,88.04,87.961,2.14548709]
[1643376055997,0.25,88.043,87.971,6.0]
[1643376056198,0.25,88.039,87.971,6.0]
[1643376056498,44.54531525,88.044,87.972,8.14548709]
[1643376056698,44.54531525,88.044,87.972,2.14548709]
[1643376056897,44.54531525,88.044,87.982,6.0]
[1643376057125,0.25,88.043,87.983,6.0]
[1643376057420,0.25,88.043,87.983,6.25]
[1643376057720,0.25,88.043,87.983,6.0]
[1643376057926,0.25,88.043,87.97,6.0]
[1643376058118,0.25,88.043,87.909,3.13857665]
[1643376058119,17.054,88.04,87.966,6.0]
[1643376058319,17.054,88.04,87.957,0.25]
[1643376058320,0.25,88.043,87.967,0.25]
[1643376058521,0.25,88.043,87.96,6.0]
[1643376058720,0.25,88.043,87.961,0.25]
[1643376059318,17.055,88.04,87.961,0.25]
[1643376059722,0.25,88.039,87.961,0.25]
[1643376061327,17.055,88.04,87.961,0.25]
[1643376061727,17.055,88.04,87.962,1.89548709]
[1643376062124,17.055,88.04,87.972,6.0]
[1643376062325,17.055,88.04,87.973,0.25]
[1643376062927,44.54531525,88.044,87.973,0.25]
[1643376063327,0.25,88.043,87.973,0.25]
[1643376063529,44.54531525,88.044,87.974,1.89548709]
[1643376064028,17.049,88.07,87.984,6.0]
[1643376064229,47.6197,88.089,87.99,13.58]
[1643376064633,47.6197,88.089,88.0,6.0]
[1643376064829,47.6197,88.089,88.001,0.25]
[1643376065030,46.32048184,88.088,88.001,6.25]
[1643376065430,46.32048184,88.088,88.01,6.0]
[1643376065634,46.32048184,88.088,88.011,6.0]
[1643376065832,46.32048184,88.088,88.011,6.25]
[1643376066332,0.25,88.087,88.011,0.25]
[1643376066541,0.25,88.087,88.021,6.0]
[1643376066733,47.6197,88.089,88.021,6.0]
[1643376066931,47.6197,88.089,88.022,0.25]
[1643376067132,47.6197,88.089,88.03,6.0]
[1643376067332,1.55820228,88.119,88.031,0.25]
[1643376067530,46.1498,88.114,88.033,6.0]
[1643376067731,44.65376857,88.113,88.033,6.0]
[1643376067931,44.65376857,88.113,88.034,0.25]
[1643376068136,0.25,88.112,88.034,0.25]
[1643376068358,44.65376857,88.113,88.034,2.14548709]
[1643376068633,44.65376857,88.113,88.044,6.0]
[1643376068834,44.65376857,88.113,88.045,0.25]
[1643376069033,44.65376857,88.113,88.045,6.25]
[1643376069735,44.65376857,88.113,88.055,6.0]
[1643376070135,44.65376857,88.113,88.056,6.25]
[1643376070536,44.65376857,88.113,88.06,6.0]
[1643376070936,44.65376857,88.113,88.066,6.0]
[1643376071136,46.1498,88.114,88.061,0.25]
[1643376071936,22.6271,88.148,88.061,0.25]
[1643376072140,39.5605239,88.137,88.061,0.25]
[1643376073038,0.25,88.136,88.061,0.25]
[1643376073438,24.1162,88.136,88.061,0.25]
[1643376074240,24.1162,88.136,88.044,6.0]
[1643376074441,24.1162,88.136,88.051,0.25]
[1643376074640,24.1162,88.136,88.06,6.0]
[1643376074839,24.1162,88.136,88.061,0.25]
[1643376075042,75.0,88.107,88.001,16.9524]
[1643376075242,35.92094948,88.106,88.001,1.5667374]
[1643376075441,6.0,88.097,87.968,1.5667374]
[1643376075641,6.0,88.096,87.968,1.5667374]
[1643376075879,45.9724,88.095,87.97,13.58]
[1643376076073,6.0,88.085,87.97,17.05]
[1643376076374,47.95236433,88.084,87.971,1.90675203]
[1643376076577,6.0,88.074,87.971,1.90675203]
[1643376076775,0.25,88.073,87.971,1.90675203]
[1643376077175,6.25,88.073,87.99,17.045]
[1643376077576,22.5946,88.083,87.991,2.1481598]
[1643376077777,0.25,88.082,87.991,2.1481598]
[1643376077978,0.25,88.082,87.991,0.25]
[1643376078379,0.25,88.082,87.983,0.25]
[1643376078778,0.25,88.082,87.981,6.0]
[1643376078779,0.25,88.082,87.992,1.8981598]
[1643376079177,0.25,88.082,87.993,0.25]
[1643376079378,6.0,88.073,87.993,0.25]
[1643376079578,6.0,88.07,87.993,0.25]
[1643376079778,43.375651,88.069,87.993,0.25]
[1643376079979,6.0,88.062,87.993,0.25]
[1643376080181,6.0,88.059,87.993,0.25]
[1643376080482,48.2763,88.058,87.971,0.25]
[1643376081287,48.2763,88.058,87.97,17.049]
[1643376081686,114.2,88.057,87.98,6.0]
[1643376081883,0.25,88.056,87.971,1.8981598]
[1643376082684,41.20309494,88.046,87.954,1.8981598]
[1643376082883,41.20309494,88.046,87.924,3.13857665]
[1643376082884,114.45,88.045,87.935,1.5667374]
[1643376083083,120.2,88.035,87.945,6.0]
[1643376083285,38.47165635,88.032,87.945,6.0]
[1643376083487,38.47165635,88.032,87.92,413.14676341]
[1643376083488,114.2,88.031,87.93,6.0]
[1643376083683,17.059,88.02,87.937,6.0]
[1643376083884,0.25,88.019,87.93,6.0]
[1643376084183,44.85002369,88.008,87.935,6.0]
[1643376084387,114.45,88.007,87.935,6.0]
[1643376084786,114.45,88.007,87.936,0.25]
[1643376085085,0.25,88.007,87.936,1.8981598]
[1643376085284,44.85002369,88.008,87.936,1.8981598]
[1643376085285,44.85002369,88.008,87.946,6.0]
[1643376085687,44.85002369,88.008,87.947,2.1481598]
[1643376085888,44.85002369,88.008,87.947,8.1481598]
[1643376086088,44.85002369,88.008,87.947,2.1481598]
[1643376089690,17.057,88.03,87.947,2.1481598]
[1643376089894,30.633,88.05,87.95,17.053]
[1643376090293,0.25,88.033,87.951,2.1481598]
[1643376090692,0.25,88.033,87.952,1.8981598]
[1643376090693,48.38821779,88.033,87.952,1.8981598]
[1643376090891,17.053,88.05,87.96,17.051]
[1643376091101,23.4886,88.058,87.97,6.0]
[1643376091294,23.4886,88.058,87.98,13.58]
[1643376091693,23.4886,88.058,87.99,6.0]
[1643376091893,23.4886,88.058,87.991,0.25]
[1643376092091,39.40816701,88.072,87.991,0.25]
[1643376092292,0.25,88.071,87.991,0.25]
[1643376092991,39.40816701,88.072,87.991,0.25]
[1643376093595,39.40816701,88.072,87.992,1.8981598]
[1643376093799,39.40816701,88.072,87.993,0.25]
[1643376094294,0.25,88.071,87.993,0.25]
[1643376094721,0.25,88.071,88.0,6.0]
[1643376094922,0.25,88.071,88.001,0.25]
[1643376095121,0.25,88.071,87.993,0.25]
[1643376095323,0.25,88.071,88.0,6.0]
[1643376095521,0.25,88.071,87.993,0.25]
[1643376095723,17.048,88.07,87.993,0.25]
[1643376095922,0.25,88.069,88.0,6.0]
[1643376096324,0.25,88.069,88.001,0.25]
[1643376097322,17.05,88.06,87.983,0.25]
[1643376097822,0.25,88.059,87.983,0.25]
[1643376098623,0.25,88.059,87.984,1.8981598]
[1643376098827,0.25,88.069,87.985,0.25]
[1643376099024,0.25,88.069,87.994,6.0]
[1643376099425,0.25,88.069,87.995,0.25]
[1643376099625,0.25,88.069,87.996,6.0]
[1643376099824,0.25,88.071,87.997,0.25]
[1643376101627,0.25,88.071,88.0,6.0]
[1643376101827,0.25,88.071,88.001,0.25]
[1643376102027,0.25,88.071,87.997,0.25]
[1643376102830,39.40816701,88.072,87.997,0.25]
[1643376103030,39.40816701,88.072,87.991,0.25]
[1643376104233,0.25,88.071,87.991,0.25]
[1643376109241,0.25,88.071,87.981,0.25]
[1643376109437,20.00569142,88.07,87.981,0.25]
[1643376109636,20.00569142,88.07,87.967,1.5667374]
[1643376109637,6.0,88.06,87.977,6.0]
[1643376109838,6.0,88.06,87.939,3.13857665]
[1643376109839,42.82517517,88.058,87.964,1.5667374]
[1643376110041,6.0,88.048,87.949,1.5667374]
[1643376110239,42.26449251,88.037,87.932,1.5667374]
[1643376110447,1.55820228,88.028,87.919,1.5667374]
[1643376110652,6.0,88.018,87.915,1.5667374]
[1643376110946,114.2,88.015,87.914,1.5667374]
[1643376111146,6.0,88.005,87.914,1.5667374]
[1643376111347,42.40755924,87.999,87.915,0.25]
[1643376111548,6.0,87.989,87.908,1.5667374]
[1643376111748,6.0,87.989,87.912,0.25]
[1643376111946,6.25,87.988,87.912,0.25]
[1643376112346,114.2,87.987,87.912,0.25]
[1643376112549,6.0,87.977,87.912,0.25]
[1643376112748,43.82549768,87.975,87.912,0.25]
[1643376112948,43.82549768,87.975,87.91,0.25]
[1643376113149,6.0,87.965,87.907,0.25]
[1643376113554,6.0,87.965,87.905,1.5667374]
[1643376113751,6.0,87.965,87.906,0.25]
[1643376113951,6.0,87.965,87.906,1.8167374]
[1643376114153,6.0,87.965,87.906,0.25]
[1643376114355,0.25,87.964,87.906,0.25]
[1643376114952,0.25,87.964,87.903,0.25]
[1643376115156,10.24,87.964,87.902,1.5667374]
[1643376115356,10.24,87.964,87.889,1.5667374]
[1643376115357,117.15669142,87.963,87.889,1.5667374]
[1643376115556,117.15669142,87.963,87.879,1.5667374]
[1643376115557,159.63958055,87.953,87.879,1.5667374]
[1643376115756,159.63958055,87.953,87.873,1.5667374]
[1643376116054,159.63958055,87.953,87.843,48.0099]
[1643376116055,0.25,87.952,87.871,1.5667374]
[1643376116256,114.2,87.951,87.864,1.5667374]
[1643376116455,6.0,87.941,87.864,1.5667374]
[1643376116655,48.74135037,87.939,87.858,1.5667374]
[1643376116862,114.45,87.938,87.856,1.5667374]
[1643376117255,114.45,87.938,87.855,1.5667374]
[1643376117457,114.45,87.938,87.854,1.5667374]
[1643376117656,114.45,87.938,87.85,17.072]
[1643376117657,114.45,87.938,87.853,1.5667374]
[1643376118056,114.2,87.927,87.85,17.072]
[1643376118257,0.25,87.926,87.85,17.072]
[1643376119260,0.25,87.926,87.851,0.25]
[1643376119464,46.2803407,87.916,87.851,0.25]
[1643376120259,0.25,87.915,87.851,0.25]
[1643376120660,46.2803407,87.916,87.851,0.25]
[1643376122665,46.2803407,87.916,87.85,17.072]
[1643376122864,0.25,87.915,87.85,17.072]
[1643376123265,0.25,87.915,87.83,58.4697374]
[1643376123465,0.25,87.915,87.845,6.0]
[1643376123665,0.25,87.915,87.84,6.0]
[1643376123866,0.25,87.915,87.841,0.25]
[1643376124066,0.25,87.915,87.838,6.0]
[1643376124265,0.25,87.915,87.839,0.25]
[1643376124675,46.2803407,87.916,87.839,0.25]
[1643376124869,46.2803407,87.916,87.84,17.074]
[1643376125066,46.2803407,87.916,87.84,28.234]
[1643376125267,46.2803407,87.916,87.84,41.814]
[1643376126367,46.2803407,87.916,87.85,6.0]
[1643376126768,0.25,87.915,87.851,0.25]
[1643376126969,6.0,87.906,87.827,1.5667374]
[1643376127171,6.0,87.906,87.801,1.5667374]
[1643376127368,6.0,87.906,87.789,47.3849]
[1643376127369,114.45,87.905,87.789,47.3849]
[1643376127568,6.0,87.904,87.789,47.3849]
[1643376127771,42.88324572,87.894,87.789,47.3849]
[1643376127969,24.3896,87.893,87.789,47.3849]
[1643376128168,17.083,87.89,87.8,17.082]
[1643376128389,0.25,87.889,87.801,0.25]
[1643376128595,0.25,87.889,87.81,6.0]
[1643376128790,0.25,87.889,87.811,0.25]
[1643376129591,0.25,87.892,87.811,0.25]
[1643376129990,17.083,87.89,87.8,0.25]
[1643376130397,38.97275,87.878,87.789,47.3849]
[1643376130691,160.4636,87.877,87.789,47.3849]
[1643376130991,160.7136,87.877,87.789,47.3849]
[1643376131190,160.7136,87.877,87.79,17.083]
[1643376131593,160.7136,87.877,87.8,6.0]
[1643376131793,160.7136,87.877,87.801,0.25]
[1643376133093,160.7136,87.877,87.8,0.25]
[1643376134695,114.2,87.866,87.8,0.25]
[1643376134893,0.25,87.865,87.8,0.25]
[1643376135097,45.33143414,87.855,87.79,0.25]
[1643376135298,0.25,87.854,87.79,0.25]
[1643376136294,29.74109876,87.874,87.79,0.25]
[1643376136495,29.74109876,87.874,87.799,6.0]
[1643376136699,46.2636,87.877,87.799,6.0]
[1643376136899,46.2636,87.877,87.8,6.25]
[1643376137097,46.2636,87.877,87.81,6.0]
[1643376137296,45.81521909,87.876,87.811,0.25]
[1643376137602,17.087,87.87,87.811,0.25]
[1643376137796,114.45,87.869,87.811,0.25]
[1643376138196,0.25,87.869,87.811,0.25]
[1643376138597,0.25,87.869,87.801,6.0]
[1643376138598,0.25,87.869,87.802,0.25]
[1643376138798,3.20669142,87.869,87.801,6.0]
[1643376138998,6.0,87.859,87.773,1.5667374]
[1643376139203,39.25724246,87.858,87.773,1.5667374]
[1643376139498,42.46393388,87.858,87.768,6.0]
[1643376139700,6.0,87.848,87.768,6.0]
[1643376139897,23.3674,87.847,87.768,6.0]
[1643376140100,114.2,87.846,87.768,6.0]
[1643376140298,0.25,87.845,87.771,1.5667374]
[1643376140901,0.25,87.845,87.768,6.0]
[1643376141202,0.25,87.845,87.765,1.5667374]
[1643376141402,0.25,87.845,87.761,1.5667374]
[1643376141403,36.22459056,87.844,87.761,1.5667374]
[1643376141899,0.25,87.843,87.762,0.25]
[1643376142098,17.093,87.84,87.762,0.25]
[1643376142299,0.25,87.839,87.762,0.25]
[1643376142500,114.45,87.839,87.76,1.8167374]
[1643376142899,0.25,87.839,87.76,0.25]
[1643376143099,0.25,87.839,87.767,6.0]
[1643376143299,0.25,87.839,87.768,0.25]
[1643376143500,0.25,87.843,87.768,0.25]
[1643376144302,17.093,87.84,87.768,0.25]
[1643376144802,0.25,87.839,87.767,0.25]
[1643376145208,0.25,87.839,87.767,1.8167374]
[1643376145404,0.25,87.839,87.767,0.25]
[1643376145605,0.25,87.839,87.776,6.0]
[1643376145907,17.093,87.84,87.777,0.25]
[1643376146507,36.22459056,87.844,87.78,6.0]
[1643376146707,114.2,87.886,87.78,6.0]
[1643376146908,49.3921,87.875,87.788,6.0]
[1643376147107,49.3921,87.875,87.791,6.0]
[1643376147307,49.3921,87.875,87.792,0.25]
[1643376147711,39.43641042,87.874,87.799,6.0]
[1643376147908,39.43641042,87.874,87.8,0.25]
[1643376148108,17.087,87.87,87.8,0.25]
[1643376148307,17.087,87.87,87.799,6.0]
[1643376149510,17.087,87.87,87.8,0.25]
[1643376149713,0.25,87.869,87.798,6.0]